[Event "Titled Tuesday Blitz March 01 Early 2022"]
[White "Pischal, Yulia"]
[Black "Dolzhykova, Kateryna"]
[WhiteFideId "14102390"]
[BlackFideId "14113414"]
[WhiteElo "1931"]
[BlackElo "2165"]
[Result "0-1"]
[Round "08"]
[TimeControl "180+1"]
[Date "2022.03.01"]
[WhiteClock "0:00:04"]
[BlackClock "0:00:33"]

1. e4 {[%clk 0:03:00]}  c5 {[%clk 0:02:59]} 2. Nc3 {[%clk 0:03:00]}  e6 {[%clk 0:02:53]} 3. g3 {[%clk 0:02:59]}  g6 {[%clk 0:02:53]} 4. Bg2 {[%clk 0:02:59]}  Bg7 {[%clk 0:02:53]} 5. d3 {[%clk 0:02:59]}  d6 {[%clk 0:02:53]} 6. f4 {[%clk 0:02:59]}  Nc6 {[%clk 0:02:52]} 7. Nf3 {[%clk 0:02:59]}  Nge7 {[%clk 0:02:53]} 8. O-O {[%clk 0:03:00]}  O-O {[%clk 0:02:54]} 9. Be3 {[%clk 0:02:58]}  Nd4 {[%clk 0:02:52]} 10. Qd2 {[%clk 0:02:58]}  Nec6 {[%clk 0:02:51]} 11. Ne1 {[%clk 0:02:57]}  f5 {[%clk 0:02:50]} 12. Nd1 {[%clk 0:02:56]}  fxe4 {[%clk 0:02:37]} 13. dxe4 {[%clk 0:02:56]}  e5 {[%clk 0:02:37]} 14. c3 {[%clk 0:02:49]}  exf4 {[%clk 0:02:37]} 15. gxf4 {[%clk 0:02:46]}  Ne6 {[%clk 0:02:37]} 16. Nf2 {[%clk 0:02:37]}  Bh6 {[%clk 0:02:23]} 17. Ng4 {[%clk 0:02:27]}  Bg7 {[%clk 0:02:15]} 18. f5 {[%clk 0:01:52]}  Nc7 {[%clk 0:02:10]} 19. Nh6+ {[%clk 0:01:45]}  Kh8 {[%clk 0:01:51]} 20. fxg6 {[%clk 0:01:28]}  Rxf1+ {[%clk 0:01:50]} 21. Bxf1 {[%clk 0:01:28]}  Ne5 {[%clk 0:01:51]} 22. Bg2 {[%clk 0:01:14]}  hxg6 {[%clk 0:01:42]} 23. Nf3 {[%clk 0:00:53]}  Be6 {[%clk 0:01:35]} 24. b3 {[%clk 0:00:34]}  Qe7 {[%clk 0:01:00]} 25. Bg5 {[%clk 0:00:31]}  Qd7 {[%clk 0:00:44]} 26. Rd1 {[%clk 0:00:24]}  Rf8 {[%clk 0:00:42]} 27. Nh4 {[%clk 0:00:15]}  Kh7 {[%clk 0:00:34]} 28. Qxd6 {[%clk 0:00:13]}  Qxd6 {[%clk 0:00:34]} 29. Rxd6 {[%clk 0:00:12]}  Bxh6 {[%clk 0:00:35]} 30. Bxh6 {[%clk 0:00:11]}  Kxh6 {[%clk 0:00:36]} 31. Rd2 {[%clk 0:00:07]}  Kg5 {[%clk 0:00:31]} 32. Nf3+ {[%clk 0:00:04]}  Rxf3 {[%clk 0:00:31]} 33. Bxf3 {[%clk 0:00:04]}  Nxf3+ {[%clk 0:00:32]} 34. Kf2 {[%clk 0:00:04]}  Nxd2 {[%clk 0:00:33]} 35. Ke3 {[%clk 0:00:04]}  Nb1 {[%clk 0:00:33]} 0-1


[Site "https://www.chess.com"]

[Event "Titled Tuesday Blitz March 01 Early 2022"]
[White "Polster, Christian"]
[Black "Quirke, Jeffrey"]
[WhiteFideId "12965081"]
[BlackFideId "2013029"]
[WhiteElo "2292"]
[BlackElo "2151"]
[Result "1-0"]
[Round "08"]
[TimeControl "180+1"]
[Date "2022.03.01"]
[WhiteClock "0:00:08"]
[BlackClock "0:00:04"]

1. e4 {[%clk 0:03:00]}  c5 {[%clk 0:02:59]} 2. Nc3 {[%clk 0:02:59]}  a6 {[%clk 0:02:58]} 3. g3 {[%clk 0:02:57]}  b5 {[%clk 0:02:58]} 4. Bg2 {[%clk 0:02:57]}  Bb7 {[%clk 0:02:58]} 5. Nge2 {[%clk 0:02:56]}  e6 {[%clk 0:02:58]} 6. O-O {[%clk 0:02:55]}  b4 {[%clk 0:02:57]} 7. Nd5 {[%clk 0:02:16]}  exd5 {[%clk 0:02:54]} 8. exd5 {[%clk 0:02:17]}  Nf6 {[%clk 0:02:52]} 9. Re1 {[%clk 0:02:13]}  Bd6 {[%clk 0:02:40]} 10. d4 {[%clk 0:02:06]}  O-O {[%clk 0:02:36]} 11. c4 {[%clk 0:01:46]}  a5 {[%clk 0:02:25]} 12. h3 {[%clk 0:01:23]}  Na6 {[%clk 0:02:25]} 13. Be3 {[%clk 0:01:06]}  Re8 {[%clk 0:02:24]} 14. g4 {[%clk 0:00:50]}  Qc7 {[%clk 0:01:46]} 15. dxc5 {[%clk 0:00:42]}  Nxc5 {[%clk 0:01:42]} 16. Nd4 {[%clk 0:00:40]}  Bf8 {[%clk 0:00:52]} 17. Nb5 {[%clk 0:00:17]}  Qb6 {[%clk 0:00:42]} 18. a3 {[%clk 0:00:14]}  Ba6 {[%clk 0:00:31]} 19. a4 {[%clk 0:00:09]}  Bxb5 {[%clk 0:00:31]} 20. axb5 {[%clk 0:00:08]}  d6 {[%clk 0:00:27]} 21. g5 {[%clk 0:00:08]}  Nfd7 {[%clk 0:00:24]} 22. Qd4 {[%clk 0:00:06]}  a4 {[%clk 0:00:23]} 23. h4 {[%clk 0:00:06]}  Nb3 {[%clk 0:00:11]} 24. Qxb6 {[%clk 0:00:05]}  Nxb6 {[%clk 0:00:11]} 25. Bxb6 {[%clk 0:00:06]}  Nxa1 {[%clk 0:00:11]} 26. Rxa1 {[%clk 0:00:07]}  a3 {[%clk 0:00:11]} 27. bxa3 {[%clk 0:00:07]}  bxa3 {[%clk 0:00:10]} 28. Bd4 {[%clk 0:00:07]}  a2 {[%clk 0:00:08]} 29. b6 {[%clk 0:00:07]}  Reb8 {[%clk 0:00:07]} 30. Bh3 {[%clk 0:00:07]}  Ra4 {[%clk 0:00:06]} 31. Bf1 {[%clk 0:00:06]}  g6 {[%clk 0:00:04]} 32. Kg2 {[%clk 0:00:06]}  Bg7 {[%clk 0:00:05]} 33. Bxg7 {[%clk 0:00:06]}  Kxg7 {[%clk 0:00:05]} 34. Kf3 {[%clk 0:00:07]}  Rxb6 {[%clk 0:00:05]} 35. Bd3 {[%clk 0:00:07]}  Rb2 {[%clk 0:00:06]} 36. Ke4 {[%clk 0:00:07]}  Rxf2 {[%clk 0:00:05]} 37. Kd4 {[%clk 0:00:07]}  Rb2 {[%clk 0:00:05]} 38. Kc3 {[%clk 0:00:08]}  Re2 {[%clk 0:00:04]} 39. Bxe2 {[%clk 0:00:07]}  Ra3+ {[%clk 0:00:04]} 40. Kd4 {[%clk 0:00:08]} 1-0


[Site "https://www.chess.com"]

[Event "Titled Tuesday Blitz March 01 Early 2022"]
[White "Rodchenkov, Vitaly"]
[Black "Vusatiuk, Vladimir"]
[WhiteFideId "4152964"]
[BlackFideId "14118610"]
[WhiteElo "2337"]
[BlackElo "2157"]
[Result "1-0"]
[Round "08"]
[TimeControl "180+1"]
[Date "2022.03.01"]
[WhiteClock "0:00:44"]
[BlackClock "0:00:01"]

1. Nf3 {[%clk 0:03:00]}  g5 {[%clk 0:02:56]} 2. Nxg5 {[%clk 0:02:58]}  e5 {[%clk 0:02:56]} 3. d4 {[%clk 0:02:55]}  Be7 {[%clk 0:02:46]} 4. h4 {[%clk 0:02:35]}  h6 {[%clk 0:02:40]} 5. Nf3 {[%clk 0:02:32]}  e4 {[%clk 0:02:40]} 6. Ne5 {[%clk 0:02:30]}  d6 {[%clk 0:02:32]} 7. Nc4 {[%clk 0:02:27]}  Bxh4 {[%clk 0:02:28]} 8. Nc3 {[%clk 0:02:23]}  d5 {[%clk 0:02:25]} 9. Ne3 {[%clk 0:02:21]}  c6 {[%clk 0:02:24]} 10. g3 {[%clk 0:02:19]}  Bg5 {[%clk 0:02:22]} 11. Ng2 {[%clk 0:02:15]}  Bxc1 {[%clk 0:02:19]} 12. Qxc1 {[%clk 0:02:14]}  Be6 {[%clk 0:02:07]} 13. Nf4 {[%clk 0:02:11]}  Qf6 {[%clk 0:01:56]} 14. e3 {[%clk 0:02:10]}  Nd7 {[%clk 0:01:49]} 15. b3 {[%clk 0:02:06]}  Ne7 {[%clk 0:01:38]} 16. Qa3 {[%clk 0:02:05]}  Ng6 {[%clk 0:01:27]} 17. Nce2 {[%clk 0:02:03]}  Bg4 {[%clk 0:01:25]} 18. O-O-O {[%clk 0:01:59]}  Nxf4 {[%clk 0:01:23]} 19. gxf4 {[%clk 0:01:57]}  h5 {[%clk 0:01:03]} 20. Re1 {[%clk 0:01:48]}  h4 {[%clk 0:01:02]} 21. Bh3 {[%clk 0:01:42]}  Bxh3 {[%clk 0:00:55]} 22. Rxh3 {[%clk 0:01:41]}  a6 {[%clk 0:00:47]} 23. Reh1 {[%clk 0:01:40]}  O-O-O {[%clk 0:00:47]} 24. Nc3 {[%clk 0:01:27]}  Rdg8 {[%clk 0:00:45]} 25. R3h2 {[%clk 0:01:27]}  Rh6 {[%clk 0:00:35]} 26. Na4 {[%clk 0:01:26]}  Rgh8 {[%clk 0:00:30]} 27. Nc5 {[%clk 0:01:25]}  h3 {[%clk 0:00:27]} 28. Nxd7 {[%clk 0:01:24]}  Kxd7 {[%clk 0:00:28]} 29. Qb4 {[%clk 0:01:25]}  Kc8 {[%clk 0:00:28]} 30. Kb2 {[%clk 0:01:24]}  Qf5 {[%clk 0:00:19]} 31. a4 {[%clk 0:01:23]}  Qg4 {[%clk 0:00:19]} 32. a5 {[%clk 0:01:21]}  Qd7 {[%clk 0:00:13]} 33. Qc5 {[%clk 0:01:17]}  Rg8 {[%clk 0:00:13]} 34. Qa7 {[%clk 0:01:13]}  Rgh8 {[%clk 0:00:13]} 35. Qc5 {[%clk 0:01:10]}  Rg6 {[%clk 0:00:13]} 36. Qa7 {[%clk 0:01:03]}  Rhh6 {[%clk 0:00:07]} 37. Qa8+ {[%clk 0:01:01]}  Kc7 {[%clk 0:00:08]} 38. Qf8 {[%clk 0:00:58]}  Rh7 {[%clk 0:00:08]} 39. Rxh3 {[%clk 0:00:46]}  Rxh3 {[%clk 0:00:05]} 40. Rxh3 {[%clk 0:00:46]}  Rf6 {[%clk 0:00:03]} 41. Rh8 {[%clk 0:00:45]}  Re6 {[%clk 0:00:01]} 42. Qb8# {[%clk 0:00:44]} 1-0


[Site "https://www.chess.com"]

[Event "Titled Tuesday Blitz March 01 Early 2022"]
[White "Rudzinska, Michalina"]
[Black "Moskvin, Anatoly"]
[WhiteFideId "1172883"]
[BlackFideId "24199990"]
[WhiteElo "1904"]
[BlackElo "2079"]
[Result "1-0"]
[Round "08"]
[TimeControl "180+1"]
[Date "2022.03.01"]
[WhiteClock "0:00:06"]
[BlackClock "0:00:02"]

1. e4 {[%clk 0:03:00]}  e5 {[%clk 0:02:59]} 2. Nf3 {[%clk 0:03:00]}  Nc6 {[%clk 0:03:00]} 3. Bb5 {[%clk 0:03:01]}  Nge7 {[%clk 0:02:59]} 4. c3 {[%clk 0:02:59]}  a6 {[%clk 0:03:00]} 5. Ba4 {[%clk 0:02:58]}  d6 {[%clk 0:03:00]} 6. d4 {[%clk 0:02:58]}  Bd7 {[%clk 0:03:00]} 7. d5 {[%clk 0:02:58]}  Nb8 {[%clk 0:03:00]} 8. O-O {[%clk 0:02:57]}  Ng6 {[%clk 0:02:48]} 9. c4 {[%clk 0:02:56]}  h6 {[%clk 0:02:40]} 10. b4 {[%clk 0:02:53]}  a5 {[%clk 0:02:40]} 11. Bxd7+ {[%clk 0:02:38]}  Nxd7 {[%clk 0:02:39]} 12. bxa5 {[%clk 0:02:39]}  Be7 {[%clk 0:02:37]} 13. Bd2 {[%clk 0:02:37]}  Bg5 {[%clk 0:02:37]} 14. Nxg5 {[%clk 0:02:34]}  hxg5 {[%clk 0:02:37]} 15. Qg4 {[%clk 0:02:34]}  Nf4 {[%clk 0:02:23]} 16. Bxf4 {[%clk 0:02:26]}  exf4 {[%clk 0:02:16]} 17. Nd2 {[%clk 0:02:25]}  Ne5 {[%clk 0:02:15]} 18. Qe2 {[%clk 0:02:21]}  g4 {[%clk 0:02:15]} 19. g3 {[%clk 0:02:15]}  f3 {[%clk 0:01:39]} 20. Qe3 {[%clk 0:02:15]}  Rxa5 {[%clk 0:01:34]} 21. Nb3 {[%clk 0:02:12]}  Ra3 {[%clk 0:01:28]} 22. c5 {[%clk 0:02:11]}  g5 {[%clk 0:00:50]} 23. cxd6 {[%clk 0:02:08]}  cxd6 {[%clk 0:00:49]} 24. Rac1 {[%clk 0:02:01]}  Ra8 {[%clk 0:00:38]} 25. Nd4 {[%clk 0:01:50]}  Qf6 {[%clk 0:00:28]} 26. Nf5 {[%clk 0:01:50]}  Rxh2 {[%clk 0:00:26]} 27. Kxh2 {[%clk 0:00:47]}  Qh8+ {[%clk 0:00:25]} 28. Nh4 {[%clk 0:00:47]}  gxh4 {[%clk 0:00:24]} 29. Rh1 {[%clk 0:00:43]}  Ke7 {[%clk 0:00:09]} 30. Rc7+ {[%clk 0:00:31]}  Kd8 {[%clk 0:00:08]} 31. Rcc1 {[%clk 0:00:17]}  Ra6 {[%clk 0:00:05]} 32. Qg5+ {[%clk 0:00:14]}  f6 {[%clk 0:00:03]} 33. Qxh4 {[%clk 0:00:15]}  Qxh4+ {[%clk 0:00:03]} 34. gxh4 {[%clk 0:00:16]}  Rxa2 {[%clk 0:00:04]} 35. Kg3 {[%clk 0:00:16]}  Ke7 {[%clk 0:00:03]} 36. Rc7+ {[%clk 0:00:15]}  Kd8 {[%clk 0:00:02]} 37. Rxb7 {[%clk 0:00:15]}  Nd3 {[%clk 0:00:03]} 38. Kxg4 {[%clk 0:00:11]}  Rxf2 {[%clk 0:00:02]} 39. h5 {[%clk 0:00:06]}  Ne5+ {[%clk 0:00:01]} 40. Kf5 {[%clk 0:00:06]}  Rg2 {[%clk 0:00:02]} 41. h6 {[%clk 0:00:06]}  Rg8 {[%clk 0:00:03]} 42. h7 {[%clk 0:00:06]}  Rh8 {[%clk 0:00:02]} 43. Rb8+ {[%clk 0:00:06]} 1-0


[Site "https://www.chess.com"]

[Event "Titled Tuesday Blitz March 01 Early 2022"]
[White "Samadov, Read"]
[Black "Silva, Miguel Antonio Neto"]
[WhiteFideId "13417444"]
[BlackFideId "1911929"]
[WhiteElo "2084"]
[BlackElo "2204"]
[Result "0-1"]
[Round "08"]
[TimeControl "180+1"]
[Date "2022.03.01"]
[WhiteClock "0:00:04"]
[BlackClock "0:00:39"]

1. d4 {[%clk 0:03:00]}  Nf6 {[%clk 0:02:59]} 2. c4 {[%clk 0:03:00]}  e6 {[%clk 0:02:59]} 3. Nf3 {[%clk 0:03:01]}  d5 {[%clk 0:02:57]} 4. g3 {[%clk 0:03:01]}  Be7 {[%clk 0:02:56]} 5. Bg2 {[%clk 0:03:01]}  O-O {[%clk 0:02:57]} 6. O-O {[%clk 0:03:02]}  dxc4 {[%clk 0:02:57]} 7. Qc2 {[%clk 0:03:02]}  a6 {[%clk 0:02:57]} 8. a4 {[%clk 0:03:03]}  Bd7 {[%clk 0:02:56]} 9. Qxc4 {[%clk 0:03:03]}  Bc6 {[%clk 0:02:54]} 10. Bg5 {[%clk 0:03:04]}  Nbd7 {[%clk 0:02:48]} 11. Nc3 {[%clk 0:03:03]}  a5 {[%clk 0:02:43]} 12. Rfd1 {[%clk 0:02:59]}  h6 {[%clk 0:02:41]} 13. Bxf6 {[%clk 0:02:52]}  Nxf6 {[%clk 0:02:40]} 14. Rac1 {[%clk 0:02:36]}  Bb4 {[%clk 0:02:39]} 15. Nb5 {[%clk 0:02:22]}  Bxf3 {[%clk 0:02:34]} 16. Bxf3 {[%clk 0:02:21]}  c6 {[%clk 0:02:35]} 17. Nc3 {[%clk 0:02:21]}  Qb6 {[%clk 0:02:31]} 18. e3 {[%clk 0:02:17]}  Rfd8 {[%clk 0:02:31]} 19. Kg2 {[%clk 0:02:17]}  Rd7 {[%clk 0:02:28]} 20. h4 {[%clk 0:02:17]}  Rad8 {[%clk 0:02:28]} 21. h5 {[%clk 0:02:16]}  Rc8 {[%clk 0:02:27]} 22. Qe2 {[%clk 0:02:05]}  Rcd8 {[%clk 0:02:19]} 23. Ne4 {[%clk 0:02:05]}  Be7 {[%clk 0:02:09]} 24. Nxf6+ {[%clk 0:01:47]}  Bxf6 {[%clk 0:02:06]} 25. Be4 {[%clk 0:01:47]}  e5 {[%clk 0:01:56]} 26. dxe5 {[%clk 0:01:46]}  Rxd1 {[%clk 0:01:54]} 27. Rxd1 {[%clk 0:01:46]}  Rxd1 {[%clk 0:01:54]} 28. Qxd1 {[%clk 0:01:46]}  Bxe5 {[%clk 0:01:55]} 29. Qd7 {[%clk 0:01:44]}  Kf8 {[%clk 0:01:33]} 30. b3 {[%clk 0:01:15]}  Qc7 {[%clk 0:01:32]} 31. Qf5 {[%clk 0:01:12]}  Bf6 {[%clk 0:01:32]} 32. Bd3 {[%clk 0:01:10]}  Qd6 {[%clk 0:01:28]} 33. Bc4 {[%clk 0:01:10]}  Ke7 {[%clk 0:01:25]} 34. Qc8 {[%clk 0:01:07]}  Qd7 {[%clk 0:01:24]} 35. Qb8 {[%clk 0:00:37]}  Bc3 {[%clk 0:01:00]} 36. Qf4 {[%clk 0:00:21]}  Bf6 {[%clk 0:00:58]} 37. Qb8 {[%clk 0:00:17]}  Bc3 {[%clk 0:00:56]} 38. e4 {[%clk 0:00:14]}  f6 {[%clk 0:00:47]} 39. Qg8 {[%clk 0:00:13]}  Kd6 {[%clk 0:00:46]} 40. Qb8+ {[%clk 0:00:12]}  Kc5 {[%clk 0:00:46]} 41. Qa7+ {[%clk 0:00:10]}  Kb4 {[%clk 0:00:46]} 42. Qb6+ {[%clk 0:00:09]}  Ka3 {[%clk 0:00:46]} 43. Qc5+ {[%clk 0:00:10]}  Bb4 {[%clk 0:00:42]} 44. Qe3 {[%clk 0:00:10]}  Qd2 {[%clk 0:00:41]} 45. Qb6 {[%clk 0:00:07]}  Kb2 {[%clk 0:00:39]} 46. Kf3 {[%clk 0:00:04]}  Bc3 {[%clk 0:00:39]} 0-1


[Site "https://www.chess.com"]

[Event "Titled Tuesday Blitz March 01 Early 2022"]
[White "Samant Aditya S"]
[Black "Janaszak, Dawid"]
[WhiteFideId "35080580"]
[BlackFideId "1119206"]
[WhiteElo "1916"]
[BlackElo "2199"]
[Result "1-0"]
[Round "08"]
[TimeControl "180+1"]
[Date "2022.03.01"]
[WhiteClock "0:00:06"]
[BlackClock "0:00:09"]

1. d4 {[%clk 0:03:00]}  Nf6 {[%clk 0:02:21]} 2. c4 {[%clk 0:03:01]}  g6 {[%clk 0:02:19]} 3. Nc3 {[%clk 0:03:01]}  Bg7 {[%clk 0:02:18]} 4. e4 {[%clk 0:03:01]}  d6 {[%clk 0:02:19]} 5. Nf3 {[%clk 0:03:00]}  O-O {[%clk 0:02:20]} 6. h3 {[%clk 0:03:00]}  e5 {[%clk 0:02:20]} 7. d5 {[%clk 0:03:01]}  Nbd7 {[%clk 0:02:20]} 8. Be3 {[%clk 0:03:00]}  Nh5 {[%clk 0:02:17]} 9. g3 {[%clk 0:02:57]}  f5 {[%clk 0:02:17]} 10. exf5 {[%clk 0:02:51]}  gxf5 {[%clk 0:02:17]} 11. Nh4 {[%clk 0:02:52]}  Nf4 {[%clk 0:02:13]} 12. Qc2 {[%clk 0:02:33]}  Nc5 {[%clk 0:02:09]} 13. O-O-O {[%clk 0:01:48]}  Ng6 {[%clk 0:02:07]} 14. Nxg6 {[%clk 0:01:45]}  hxg6 {[%clk 0:02:08]} 15. g4 {[%clk 0:01:46]}  a5 {[%clk 0:02:02]} 16. Rg1 {[%clk 0:01:43]}  e4 {[%clk 0:01:55]} 17. gxf5 {[%clk 0:01:32]}  Bxf5 {[%clk 0:01:55]} 18. Be2 {[%clk 0:01:23]}  Nd3+ {[%clk 0:01:52]} 19. Kb1 {[%clk 0:01:22]}  b5 {[%clk 0:01:42]} 20. cxb5 {[%clk 0:01:18]}  Qf6 {[%clk 0:01:41]} 21. a3 {[%clk 0:00:51]}  Rab8 {[%clk 0:01:29]} 22. h4 {[%clk 0:00:27]}  Qxh4 {[%clk 0:01:18]} 23. f3 {[%clk 0:00:25]}  Nc5 {[%clk 0:01:10]} 24. Bxc5 {[%clk 0:00:20]}  dxc5 {[%clk 0:01:04]} 25. fxe4 {[%clk 0:00:20]}  Bh3 {[%clk 0:00:43]} 26. Rxg6 {[%clk 0:00:20]}  Kh7 {[%clk 0:00:40]} 27. Rgg1 {[%clk 0:00:19]}  Rf2 {[%clk 0:00:36]} 28. e5+ {[%clk 0:00:18]}  Bf5 {[%clk 0:00:34]} 29. Bd3 {[%clk 0:00:13]}  Rxc2 {[%clk 0:00:31]} 30. Bxf5+ {[%clk 0:00:13]}  Kg8 {[%clk 0:00:32]} 31. Bxc2 {[%clk 0:00:12]}  Rf8 {[%clk 0:00:28]} 32. Rg2 {[%clk 0:00:11]}  Rf7 {[%clk 0:00:16]} 33. d6 {[%clk 0:00:09]}  cxd6 {[%clk 0:00:14]} 34. exd6 {[%clk 0:00:10]}  Qh3 {[%clk 0:00:12]} 35. Rgd2 {[%clk 0:00:09]}  Rd7 {[%clk 0:00:08]} 36. Bb3+ {[%clk 0:00:08]}  c4 {[%clk 0:00:06]} 37. Bxc4+ {[%clk 0:00:08]}  Kh7 {[%clk 0:00:07]} 38. Rd3 {[%clk 0:00:07]}  Qh4 {[%clk 0:00:07]} 39. Be6 {[%clk 0:00:05]}  Rd8 {[%clk 0:00:06]} 40. Rh3 {[%clk 0:00:06]}  Qxh3 {[%clk 0:00:07]} 41. Bxh3 {[%clk 0:00:07]}  Kg6 {[%clk 0:00:06]} 42. Bg2 {[%clk 0:00:06]}  Kf6 {[%clk 0:00:07]} 43. Ne4+ {[%clk 0:00:06]}  Ke5 {[%clk 0:00:08]} 44. Nc5 {[%clk 0:00:06]}  Bh6 {[%clk 0:00:09]} 45. Nb7 {[%clk 0:00:05]}  Rd7 {[%clk 0:00:09]} 46. Bc6 {[%clk 0:00:05]}  Rd8 {[%clk 0:00:09]} 47. d7 {[%clk 0:00:06]} 1-0


[Site "https://www.chess.com"]

[Event "Titled Tuesday Blitz March 01 Early 2022"]
[White "Sarana, Alexey"]
[Black "Murzin, Volodar"]
[WhiteFideId "24133795"]
[BlackFideId "44155573"]
[WhiteElo "2962"]
[BlackElo "2749"]
[Result "1-0"]
[Round "08"]
[TimeControl "180+1"]
[Date "2022.03.01"]
[WhiteClock "0:00:48"]
[BlackClock "0:00:01"]

1. d4 {[%clk 0:03:00]}  d5 {[%clk 0:02:52]} 2. c4 {[%clk 0:03:01]}  c6 {[%clk 0:02:51]} 3. Nf3 {[%clk 0:03:00]}  Nf6 {[%clk 0:02:51]} 4. Nc3 {[%clk 0:03:01]}  e6 {[%clk 0:02:51]} 5. e3 {[%clk 0:03:00]}  Nbd7 {[%clk 0:02:50]} 6. Qc2 {[%clk 0:03:01]}  b6 {[%clk 0:02:47]} 7. Bd3 {[%clk 0:02:56]}  Bb7 {[%clk 0:02:44]} 8. O-O {[%clk 0:02:56]}  Bd6 {[%clk 0:02:43]} 9. b3 {[%clk 0:02:54]}  O-O {[%clk 0:02:42]} 10. Bb2 {[%clk 0:02:55]}  Qc7 {[%clk 0:02:31]} 11. Rac1 {[%clk 0:02:53]}  Rae8 {[%clk 0:02:14]} 12. cxd5 {[%clk 0:02:34]}  exd5 {[%clk 0:02:15]} 13. Nb5 {[%clk 0:02:31]}  Qb8 {[%clk 0:02:15]} 14. Nxd6 {[%clk 0:02:29]}  Qxd6 {[%clk 0:02:16]} 15. Ne5 {[%clk 0:02:29]}  g6 {[%clk 0:02:03]} 16. Qe2 {[%clk 0:02:19]}  Rc8 {[%clk 0:01:24]} 17. Qf3 {[%clk 0:02:17]}  c5 {[%clk 0:01:15]} 18. Qf4 {[%clk 0:01:48]}  Nh5 {[%clk 0:00:55]} 19. Qh6 {[%clk 0:01:48]}  Nxe5 {[%clk 0:00:43]} 20. dxe5 {[%clk 0:01:48]}  Qc6 {[%clk 0:00:40]} 21. f4 {[%clk 0:01:32]}  d4 {[%clk 0:00:39]} 22. e4 {[%clk 0:01:31]}  Rcd8 {[%clk 0:00:11]} 23. g4 {[%clk 0:01:25]}  Ng7 {[%clk 0:00:10]} 24. f5 {[%clk 0:01:22]}  Qc7 {[%clk 0:00:04]} 25. e6 {[%clk 0:01:06]}  Nxe6 {[%clk 0:00:03]} 26. fxe6 {[%clk 0:01:04]}  fxe6 {[%clk 0:00:03]} 27. Rce1 {[%clk 0:00:51]}  Qe5 {[%clk 0:00:03]} 28. Bc1 {[%clk 0:00:50]}  Rxf1+ {[%clk 0:00:02]} 29. Rxf1 {[%clk 0:00:51]}  Bc6 {[%clk 0:00:01]} 30. Bg5 {[%clk 0:00:48]} 1-0


[Site "https://www.chess.com"]

[Event "Titled Tuesday Blitz March 01 Early 2022"]
[White "Sarkar, Justin"]
[Black "Kejzar, Petra"]
[WhiteFideId "2010011"]
[BlackFideId "14610213"]
[WhiteElo "2038"]
[BlackElo "2006"]
[Result "1-0"]
[Round "08"]
[TimeControl "180+1"]
[Date "2022.03.01"]
[WhiteClock "0:00:07"]
[BlackClock "0:00:38"]

1. d4 {[%clk 0:02:48]}  Nf6 {[%clk 0:02:59]} 2. c4 {[%clk 0:02:47]}  e6 {[%clk 0:02:59]} 3. Nc3 {[%clk 0:02:46]}  Bb4 {[%clk 0:02:59]} 4. a3 {[%clk 0:02:47]}  Bxc3+ {[%clk 0:02:59]} 5. bxc3 {[%clk 0:02:47]}  O-O {[%clk 0:02:58]} 6. e3 {[%clk 0:02:42]}  c5 {[%clk 0:02:58]} 7. Bd3 {[%clk 0:02:41]}  Nc6 {[%clk 0:02:57]} 8. Ne2 {[%clk 0:02:39]}  b6 {[%clk 0:02:55]} 9. e4 {[%clk 0:02:34]}  d6 {[%clk 0:02:50]} 10. O-O {[%clk 0:02:31]}  Ba6 {[%clk 0:02:49]} 11. f4 {[%clk 0:02:24]}  Na5 {[%clk 0:02:40]} 12. e5 {[%clk 0:02:13]}  dxe5 {[%clk 0:02:25]} 13. fxe5 {[%clk 0:02:00]}  Ng4 {[%clk 0:02:25]} 14. h3 {[%clk 0:01:40]}  Nxe5 {[%clk 0:02:04]} 15. dxe5 {[%clk 0:01:37]}  Bxc4 {[%clk 0:02:04]} 16. Bxc4 {[%clk 0:01:25]}  Nxc4 {[%clk 0:02:05]} 17. Bf4 {[%clk 0:00:59]}  Qc7 {[%clk 0:01:52]} 18. Qd3 {[%clk 0:00:55]}  b5 {[%clk 0:01:47]} 19. Qg3 {[%clk 0:00:51]}  Rfd8 {[%clk 0:01:43]} 20. a4 {[%clk 0:00:45]}  Nd2 {[%clk 0:01:34]} 21. Bh6 {[%clk 0:00:36]}  f5 {[%clk 0:01:19]} 22. Bxd2 {[%clk 0:00:17]}  Rxd2 {[%clk 0:01:17]} 23. Qe3 {[%clk 0:00:17]}  Rad8 {[%clk 0:01:12]} 24. Nf4 {[%clk 0:00:17]}  Qb7 {[%clk 0:01:06]} 25. axb5 {[%clk 0:00:14]}  R8d3 {[%clk 0:01:01]} 26. Qxd3 {[%clk 0:00:11]}  Rxd3 {[%clk 0:00:59]} 27. Nxd3 {[%clk 0:00:11]}  Qxb5 {[%clk 0:00:58]} 28. Nf4 {[%clk 0:00:09]}  Qb6 {[%clk 0:00:55]} 29. Rad1 {[%clk 0:00:08]}  c4+ {[%clk 0:00:54]} 30. Kh1 {[%clk 0:00:08]}  g5 {[%clk 0:00:54]} 31. Nh5 {[%clk 0:00:07]}  a5 {[%clk 0:00:51]} 32. Rd7 {[%clk 0:00:07]}  Qc6 {[%clk 0:00:44]} 33. Nf6+ {[%clk 0:00:07]}  Kf8 {[%clk 0:00:42]} 34. Nxh7+ {[%clk 0:00:07]}  Ke8 {[%clk 0:00:39]} 35. Nf6+ {[%clk 0:00:07]}  Kf8 {[%clk 0:00:38]} 36. Rb1 {[%clk 0:00:07]} 1-0


[Site "https://www.chess.com"]

[Event "Titled Tuesday Blitz March 01 Early 2022"]
[White "Selkirk, Rebecca"]
[Black "Golubka, Petro"]
[WhiteFideId "14306514"]
[BlackFideId "14114224"]
[WhiteElo "1649"]
[BlackElo "2392"]
[Result "0-1"]
[Round "08"]
[TimeControl "180+1"]
[Date "2022.03.01"]
[WhiteClock "0:01:28"]
[BlackClock "0:00:22"]

1. e4 {[%clk 0:03:00]}  e5 {[%clk 0:00:53]} 2. Nf3 {[%clk 0:02:59]}  Nc6 {[%clk 0:00:53]} 3. Bb5 {[%clk 0:02:58]}  Nge7 {[%clk 0:00:47]} 4. c3 {[%clk 0:02:57]}  a6 {[%clk 0:00:47]} 5. Ba4 {[%clk 0:02:57]}  Ng6 {[%clk 0:00:46]} 6. O-O {[%clk 0:02:55]}  Be7 {[%clk 0:00:45]} 7. d4 {[%clk 0:02:56]}  b5 {[%clk 0:00:45]} 8. Bc2 {[%clk 0:02:49]}  O-O {[%clk 0:00:42]} 9. dxe5 {[%clk 0:02:41]}  Ncxe5 {[%clk 0:00:39]} 10. Nxe5 {[%clk 0:02:41]}  Nxe5 {[%clk 0:00:40]} 11. f4 {[%clk 0:02:40]}  Nc4 {[%clk 0:00:36]} 12. b3 {[%clk 0:02:38]}  Nb6 {[%clk 0:00:34]} 13. e5 {[%clk 0:02:35]}  d5 {[%clk 0:00:34]} 14. f5 {[%clk 0:02:25]}  f6 {[%clk 0:00:32]} 15. e6 {[%clk 0:02:22]}  c5 {[%clk 0:00:32]} 16. Bf4 {[%clk 0:02:04]}  Bb7 {[%clk 0:00:31]} 17. Nd2 {[%clk 0:02:04]}  d4 {[%clk 0:00:31]} 18. cxd4 {[%clk 0:02:02]}  Nd5 {[%clk 0:00:30]} 19. Qf3 {[%clk 0:01:34]}  Nxf4 {[%clk 0:00:26]} 20. Qxb7 {[%clk 0:01:34]}  Qxd4+ {[%clk 0:00:25]} 21. Kh1 {[%clk 0:01:33]}  Qxd2 {[%clk 0:00:25]} 22. Qxe7 {[%clk 0:01:28]}  Qxg2# {[%clk 0:00:22]} 0-1


[Site "https://www.chess.com"]